fUST/lending_fUST_20250416
["ID","MTS","AMOUNT","RATE_DAILY","PERIOD"]
[358115592,1744743040407,-1208.1550018,0.00024967,2]
[358115593,1744743040418,-129.73673943,0.00024967,2]
[358115594,1744743040430,-1078.41826237,0.00024967,2]
[358115595,1744743040439,-1208.1550018,0.00024967,2]
[358115596,1744743040449,-500.0,0.00024967,2]
[358115597,1744743040458,-1208.1550018,0.00024967,2]
[358115598,1744743040468,-1208.1550018,0.00024967,2]
[358115599,1744743040478,-1208.1550018,0.00024967,2]
[358115600,1744743040487,-1208.1550018,0.00024967,2]
[358115601,1744743040497,-1208.1550018,0.00024967,2]
[358115602,1744743040507,-340.34571542,0.00024967,2]
[358115603,1744743040519,-842.42856795,0.00024967,2]
[358115667,1744743046361,-246.0,0.00024164,2]
[358115668,1744743046371,-42.16064897,0.00024967,2]
[358115669,1744743046381,-1224.93493234,0.00024967,2]
[358115670,1744743046390,-614.29894012,0.00024967,2]
[358115671,1744743046404,-610.63599222,0.00024967,2]
[358115672,1744743046414,-1224.93493234,0.00024967,2]
[358115673,1744743046424,-1991.89999118,0.00024968,2]
[358115674,1744743046466,-12524.4700968,0.00024968,2]
[358115675,1744743046478,-4173.09062842,0.00024968,2]
[358115676,1744743046487,-500.0,0.00024973,2]
[358115677,1744743046497,-500.0,0.00024973,2]
[358115678,1744743046507,-500.0,0.00024973,2]
[358115679,1744743046516,-500.0,0.00024973,2]
[358115680,1744743046526,-500.0,0.00024973,2]
[358115681,1744743046535,-500.0,0.00024973,2]
[358115682,1744743046544,-500.0,0.00024973,2]
[358115683,1744743046554,-500.0,0.00024973,2]
[358115684,1744743046564,-500.0,0.00024973,2]
[358115685,1744743046574,-500.0,0.00024973,2]
[358115686,1744743046585,-500.0,0.00024973,2]
[358115687,1744743046595,-503.93618185,0.00024973,2]
[358115688,1744743046604,-500.0,0.00024973,2]
[358115689,1744743046613,-500.0,0.00024973,2]
[358115690,1744743046623,-500.0,0.00024973,2]
[358115691,1744743046632,-250.36246955,0.00024977,2]
[358115692,1744743046642,-500.0,0.00024979,2]
[358115693,1744743046653,-500.0,0.00024979,2]
[358115694,1744743046663,-151.0,0.00024985,2]
[358115695,1744743046673,-207.4,0.00024985,2]
[358115696,1744743046682,-79.22161302,0.00024988,2]
[358115697,1744743046694,-420.77838698,0.00024988,2]
[358115698,1744743046704,-1225.99103231,0.0002499,2]
[358115699,1744743046716,-1363.3573757,0.0002499,2]
[358115700,1744743046727,-685.98913599,0.0002499,2]
[358115754,1744744232334,-166.61976,0.00023758,2]
[358115755,1744744232344,-172.689325,0.00023837,2]
[358115757,1744744232355,-167.75509615,0.00024246,2]
[358115758,1744744232365,-959.60561351,0.00024346,2]
[358115759,1744744232375,-3124.83901892,0.00024372,2]
[358115760,1744744232387,-160.0,0.00024479,2]
[358115761,1744744232397,-269.6331737,0.0002475,2]
[358115762,1744744232407,-1695.10277776,0.00024756,2]
[358115763,1744744232417,-183.56707784,0.0002476,2]
[358115764,1744744232426,-151.0,0.00024852,2]
[358115765,1744744232436,-215.0738,0.00024852,2]
[358115766,1744744232446,-300.0,0.00024855,2]
[358115767,1744744232456,-300.0,0.00024855,2]
[358115768,1744744232466,-500.0,0.00024864,2]
[358115769,1744744232476,-248.45431259,0.00024866,2]
[358115770,1744744232486,-2789.54642725,0.00024867,2]
[358115771,1744744232497,-7438.43634825,0.00024867,3]
[358115772,1744744232508,-22390.41352962,0.00024867,2]
[358115773,1744744232521,-51449.85469658,0.00024867,2]
[358115805,1744744238470,-500.0,0.00024859,2]
[358115807,1744744238481,-500.0,0.00024859,2]
[358115809,1744744238491,-500.0,0.00024859,2]
[358115811,1744744238500,-500.0,0.00024859,2]
[358115813,1744744238510,-500.0,0.00024859,2]
[358115815,1744744238521,-404.07509091,0.00024859,2]
[358115817,1744744238530,-500.0,0.00024859,2]
[358115819,1744744238540,-500.0,0.00024859,2]
[358115821,1744744238550,-500.0,0.00024859,2]
[358115823,1744744238560,-500.0,0.00024859,2]
[358115825,1744744238570,-500.0,0.00024859,2]
[358115827,1744744238580,-500.0,0.00024859,2]
[358115829,1744744238590,-500.0,0.00024859,2]
[358115831,1744744238600,-500.0,0.00024859,2]
[358115833,1744744238610,-500.0,0.00024859,2]
[358115835,1744744238620,-500.0,0.00024859,2]
[358115838,1744744238630,-500.0,0.00024859,2]
[358115839,1744744238639,-500.0,0.00024859,2]
[358115841,1744744238649,-500.0,0.00024859,2]
[358115843,1744744238659,-47758.41463742,0.00024867,2]
[358115846,1744744238674,-2153.00168453,0.00024867,2]
[358116190,1744744243281,-388.84,0.00024859,2]
[358116191,1744744243334,-24512.9405827,0.00024859,2]
[358116192,1744744243344,-74141.32870291,0.00024867,2]
[358116193,1744744243354,-69327.36996079,0.000249,2]
[358116294,1744744253121,-1037.51325281,0.000249,2]
[358116295,1744744253131,-4023.14086544,0.000249,5]
[358116296,1744744253142,-162.0,0.00024932,2]
[358116297,1744744253152,-160.0,0.00024959,2]
[358116298,1744744253162,-500.0,0.00024973,2]
[358116299,1744744253172,-500.0,0.00024973,2]
[358116300,1744744253182,-500.0,0.00024973,2]
[358116301,1744744253192,-184.35512181,0.00024973,2]
[358116302,1744744253206,-500.0,0.00024973,2]
[358116303,1744744253217,-500.0,0.00024973,2]
[358116304,1744744253227,-500.0,0.00024973,2]
[358116305,1744744253438,-500.0,0.00024973,2]
[358116306,1744744253449,-500.0,0.00024973,2]
[358116307,1744744253459,-500.0,0.00024973,2]
[358116308,1744744253469,-500.0,0.00024973,2]
[358116309,1744744253478,-508.26830363,0.00024973,2]
[358116310,1744744253488,-500.0,0.00024973,2]
[358116311,1744744253499,-500.0,0.00024973,2]
[358116312,1744744253508,-500.0,0.00024973,2]
[358116313,1744744253518,-500.72858497,0.00024973,2]
[358116314,1744744253528,-500.0,0.00024973,2]
[358116315,1744744253537,-500.0,0.00024973,2]
[358116316,1744744253547,-500.0,0.00024973,2]
[358116317,1744744253557,-500.0,0.00024973,2]
[358116318,1744744253565,-500.0,0.00024973,2]
[358116319,1744744253574,-500.0,0.00024973,2]
[358116320,1744744253584,-185.3849883,0.00024973,2]
[358116321,1744744253592,-500.0,0.00024973,2]
[358116322,1744744253601,-500.0,0.00024973,2]
[358116323,1744744253612,-17591.2208034,0.00024973,2]
[358116324,1744744253622,-838.71732705,0.00024982,2]
[358116325,1744744253633,-420.08908737,0.00024982,2]
[358116326,1744744253643,-160.0,0.00024982,2]
[358116327,1744744253653,-160.0,0.00024982,2]
[358116328,1744744253663,-12536.72526453,0.00024982,2]
[358116329,1744744253672,-160.0,0.00024987,2]
[358116330,1744744253682,-70364.8832136,0.0002499,2]
[358116331,1744744253691,-184492.36947881,0.00025,2]
[358116332,1744744253700,-1687.86,0.00025,2]
[358116333,1744744253710,-200.63097516,0.00025,2]
[358116334,1744744253719,-201.793591,0.00025,2]
[358116335,1744744253728,-162.0,0.00025,2]
[358116336,1744744253738,-500.0,0.00025138,2]
[358116337,1744744253747,-1500.0,0.00025205,2]
[358116338,1744744253757,-1500.0,0.00025205,2]
[358116339,1744744253767,-2440.27,0.00025205,2]
[358116340,1744744253776,-500.0,0.00025247,2]
[358116341,1744744253786,-500.0,0.00025247,2]
[358116342,1744744253795,-500.0,0.00025412,2]
[358116343,1744744253805,-1500.0,0.00025479,2]
[358116344,1744744253816,-1500.0,0.00025479,2]
[358116345,1744744253826,-2440.27,0.00025479,2]
[358116346,1744744253837,-760.0,0.000255,3]
[358116347,1744744253847,-1000.0,0.000255,2]
[358116348,1744744253857,-500.0,0.00025521,2]
[358116349,1744744253866,-500.0,0.00025521,2]
[358116350,1744744253876,-5000.0,0.00025538,2]
[358116351,1744744253886,-4023.14086526,0.00025659,6]
[358116352,1744744253896,-500.0,0.00025686,2]
[358116353,1744744253906,-1500.0,0.00025753,2]
[358116354,1744744253916,-1500.0,0.00025753,2]
[358116355,1744744253926,-2440.27,0.00025753,2]
[358116356,1744744253936,-500.0,0.00025795,2]
[358116357,1744744253946,-500.0,0.00025795,2]
[358116358,1744744253956,-17591.2208034,0.0002586,2]
[358116359,1744744253966,-50000.0,0.0002587,2]
[358116360,1744744253975,-151.0,0.0002587,2]
[358116361,1744744253986,-157.799996,0.0002587,7]
[358116362,1744744253996,-828.536201,0.0002587,2]
[358116363,1744744254008,-828.536201,0.0002587,2]
[358116364,1744744254018,-151.0,0.0002587,7]
[358116365,1744744254028,-151.0,0.0002587,7]
[358116366,1744744254037,-17591.2208034,0.0002589,2]
[358116367,1744744254047,-162.0,0.0002589,2]
[358116368,1744744254057,-10000.0,0.000259,2]
[358116369,1744744254067,-500.0,0.0002596,2]
[358116370,1744744254077,-541.5,0.00025978,15]
[358116371,1744744254087,-400.31941427,0.00026,2]
[358116372,1744744254097,-517.1003957,0.00026,2]
[358116373,1744744254107,-19900.0,0.00026,2]
[358116374,1744744254117,-300.0,0.00026,2]
[358116375,1744744254127,-1500.0,0.00026027,2]
[358116376,1744744254137,-500.0,0.00026027,2]
[358116377,1744744254146,-2440.27,0.00026027,2]
[358116378,1744744254155,-500.0,0.00026069,2]
[358116379,1744744254164,-500.0,0.00026069,2]
[358116380,1744744254173,-500.0,0.00026073,2]
[358116381,1744744254182,-500.0,0.00026173,2]
[358116382,1744744254191,-500.0,0.00026234,2]
[358116383,1744744254205,-17591.2208034,0.00026267,2]
[358116384,1744744254214,-1030.25776386,0.00026277,2]
[358116385,1744744254223,-10137.51775198,0.00026277,2]
[358116386,1744744254232,-828.536201,0.00026291,2]
[358116387,1744744254243,-828.536201,0.00026291,2]
[358116388,1744744254252,-151.0,0.00026291,7]
[358116389,1744744254262,-151.0,0.00026291,7]
[358116390,1744744254271,-1500.0,0.00026301,2]
[358116391,1744744254282,-2440.27,0.00026301,2]
[358116392,1744744254292,-500.0,0.00026343,2]
[358116393,1744744254301,-500.0,0.00026343,2]
[358116394,1744744254311,-160.0,0.00026357,2]
[358116395,1744744254321,-4023.14086526,0.00026417,6]
[358116396,1744744254330,-600.0,0.000265,2]
[358116397,1744744254340,-500.0,0.00026508,2]
[358116398,1744744254349,-501.16096392,0.00026537,2]
[358116399,1744744254358,-471.24557313,0.00026537,2]
[358116400,1744744254368,-501.47878109,0.00026537,2]
[358116401,1744744254378,-506.39052573,0.00026537,2]
[358116402,1744744254388,-505.78593997,0.00026537,2]
[358116403,1744744254397,-501.66704821,0.00026537,2]
[358116404,1744744254407,-284.03716427,0.00026537,2]
[358116405,1744744254417,-504.02333986,0.00026537,2]
[358116406,1744744254426,-504.48755262,0.00026537,2]
[358116407,1744744254440,-501.11201665,0.00026537,2]
[358116408,1744744254449,-442.89894578,0.00026537,2]
[358116409,1744744254458,-500.0,0.00026537,2]
[358116410,1744744254467,-501.14047489,0.00026537,2]
[358116411,1744744254476,-502.5192238,0.00026537,2]
[358116412,1744744254486,-396.06588782,0.00026537,2]
[358116413,1744744254496,-500.99332473,0.00026537,2]
[358116414,1744744254506,-504.66491401,0.00026537,2]
[358116415,1744744254515,-504.68008491,0.00026537,2]
[358116416,1744744254525,-501.94191919,0.00026537,2]
[358116417,1744744254534,-594.87329361,0.00026537,2]
[358116418,1744744254543,-500.72160479,0.00026537,2]
[358116419,1744744254552,-631.78178285,0.00026537,2]
[358116420,1744744254563,-500.28232219,0.00026537,2]
[358116421,1744744254572,-500.0,0.00026557,2]
[358116422,1744744254582,-500.1886179,0.00026557,2]
[358116423,1744744254591,-500.0,0.00026557,2]
[358116424,1744744254601,-1500.0,0.00026575,2]
[358116425,1744744254611,-2440.27,0.00026575,2]
[358116426,1744744254620,-615.59150935,0.00026617,2]
[358116427,1744744254629,-500.0,0.00026617,2]
[358116428,1744744254639,-500.0,0.00026629,2]
[358116429,1744744254648,-503.27519041,0.00026738,2]
[358116430,1744744254658,-501.80104827,0.00026738,2]
[358116431,1744744254667,-500.0,0.00026738,2]
[358116432,1744744254676,-501.58432208,0.00026738,2]
[358116433,1744744254686,-503.58641947,0.00026775,2]
[358116434,1744744254695,-260.29676011,0.00026775,2]
[358116435,1744744254705,-501.95787657,0.00026775,2]
[358116436,1744744254714,-503.59134136,0.00026775,2]
[358116437,1744744254724,-500.70183418,0.00026775,2]
[358116438,1744744254734,-502.17657197,0.00026775,2]
[358116439,1744744254744,-502.07122918,0.00026775,2]
[358116440,1744744254753,-500.0,0.00026782,2]
[358116441,1744744254763,-1000.0,0.000268,3]
[358116442,1744744254773,-1500.0,0.00026849,2]
[358116443,1744744254783,-2440.27,0.00026849,2]
[358116444,1744744254793,-156.713468,0.00026856,2]
[358116445,1744744254802,-500.0,0.00026891,2]
[358116446,1744744254812,-151.0,0.00026897,2]
[358116447,1744744254822,-420.0,0.0002693,2]
[358116448,1744744254832,-1013.27,0.00027,2]
[358116449,1744744254842,-3655.03733138,0.00027,2]
[358116450,1744744254852,-339.2829099,0.00027,2]
[358116451,1744744254862,-300.0,0.00027,2]
[358116452,1744744254872,-420.0,0.00027052,2]
[358116453,1744744254882,-643.83000001,0.00027056,2]
[358116454,1744744254891,-151.0,0.000271,16]
[358116455,1744744254901,-17591.2208034,0.00027113,2]
[358116456,1744744254910,-500.0,0.00027118,2]
[358116457,1744744254920,-1500.0,0.00027123,2]
[358116458,1744744254929,-2440.27,0.00027123,2]
[358116459,1744744254942,-500.0,0.00027138,2]
[358116460,1744744254951,-500.69378229,0.00027158,2]
[358116461,1744744254961,-500.0,0.00027165,2]
[358116462,1744744254970,-4023.14086526,0.00027176,7]
[358116463,1744744254981,-166.0,0.00027185,2]
[358116464,1744744254990,-11958.22,0.00027194,3]
[358116465,1744744255001,-500.39998957,0.00027204,2]
[358116466,1744744255011,-23059.72757119,0.00027205,2]
[358116467,1744744255021,-2989.55,0.0002726,3]
[358116468,1744744255031,-1494.78,0.0002726,3]
[358116469,1744744255041,-5979.11,0.0002727,3]
[358116470,1744744255049,-23916.44,0.0002728,3]
[358116471,1744744255058,-160.0,0.0002729,3]
[358116472,1744744255068,-151.0,0.0002729,2]
[358116473,1744744255077,-13045.33,0.0002729,3]
[358116474,1744744255087,-828.536201,0.0002729,2]
[358116475,1744744255096,-828.536201,0.0002729,2]
[358116476,1744744255106,-160.0,0.0002729,3]
[358116477,1744744255116,-420.08908737,0.0002729,3]
[358116478,1744744255126,-160.0,0.0002729,3]
[358116479,1744744255135,-838.71732705,0.0002729,3]
[358116480,1744744255146,-151.0,0.0002729,7]
[358116481,1744744255155,-160.0,0.0002729,3]
[358116482,1744744255164,-747.39,0.0002729,3]
[358116483,1744744255174,-472.56,0.000273,31]
[358116484,1744744255186,-472.56,0.000273,31]
[358116485,1744744255197,-472.56,0.000273,31]
[358116486,1744744255208,-472.56,0.000273,31]
[358116487,1744744255219,-472.56,0.000273,31]
[358116488,1744744255228,-472.56,0.000273,31]
[358116489,1744744255239,-472.56,0.000273,31]
[358116490,1744744255248,-472.56,0.000273,31]
[358116491,1744744255257,-472.56,0.000273,31]
[358116492,1744744255267,-472.56,0.000273,31]
[358116493,1744744255279,-472.56,0.000273,31]
[358116494,1744744255289,-472.56,0.000273,31]
[358116495,1744744255299,-500.0,0.00027318,2]
[358116496,1744744255308,-180.0360072,0.00027378,2]
[358116497,1744744255318,-1500.0,0.00027397,2]
[358116498,1744744255329,-2440.27,0.00027397,2]
[358116499,1744744255340,-500.0,0.00027397,2]
[358116500,1744744255350,-500.0,0.00027397,2]
[358116501,1744744255361,-500.0,0.00027397,2]
[358116502,1744744255371,-500.0,0.00027397,2]
[358116503,1744744255381,-397.05441868,0.00027397,2]
[358116504,1744744255391,-500.0,0.00027397,2]
[358116505,1744744255401,-500.0,0.00027397,2]
[358116506,1744744255411,-500.0,0.00027397,2]
[358116507,1744744255421,-500.0,0.00027397,2]
[358116508,1744744255430,-10013.94566062,0.00027397,2]
[358116509,1744744255442,-634.46025484,0.00027397,2]
[358116510,1744744255452,-500.0,0.00027397,2]
[358116511,1744744255462,-239.707,0.00027397,30]
[358116512,1744744255472,-250.0,0.00027397,30]
[358116513,1744744255482,-218.28958853,0.00027397,2]
[358116514,1744744255492,-213.8163079,0.00027397,5]
[358116515,1744744255501,-500.0,0.00027397,4]
[358116516,1744744255512,-500.0,0.00027397,5]
[358116517,1744744255523,-583.66047326,0.00027439,2]
[358116518,1744744255532,-500.0,0.00027645,2]
[358116519,1744744255543,-1500.0,0.00027671,2]
[358116520,1744744255553,-2440.27,0.00027671,2]
[358116521,1744744255563,-7402.66528549,0.000277,2]
[358116522,1744744255573,-160.0,0.00027727,2]
[358116523,1744744255583,-1695.10277769,0.00027795,2]
[358116524,1744744255593,-151.0,0.000279,13]
[358116525,1744744255602,-4023.14086526,0.00027934,7]
[358116526,1744744255612,-1500.0,0.00027945,2]
[358116527,1744744255623,-2440.27,0.00027945,2]
[358116528,1744744255633,-151.0,0.00027945,2]
[358116529,1744744255642,-828.536201,0.00027945,2]
[358116530,1744744255652,-828.536201,0.00027945,2]
[358116531,1744744255663,-1000.0,0.00028,60]
[358116532,1744744255672,-300.0,0.00028,2]
[358116533,1744744255684,-160.0,0.00028,10]
[358116534,1744744255693,-312.5017938,0.00028,10]
[358116535,1744744255703,-1500.0,0.00028219,2]
[358116536,1744744255713,-2440.27,0.00028219,2]
[358116537,1744744255723,-151.0,0.000283,15]
[358116538,1744744255732,-151.0,0.000283,7]
[358116539,1744744255741,-152.61504102,0.00028329,2]
[358116540,1744744255751,-1000.0,0.00028493,2]
[358116541,1744744255761,-2440.27,0.00028493,2]
[358116542,1744744255771,-1000.0,0.00028493,4]
[358116543,1744744255781,-23916.44,0.00028564,3]
[358116544,1744744255790,-152.61504102,0.00028575,2]
[358116545,1744744255800,-151.0,0.000286,12]
[358116546,1744744255810,-5979.1,0.0002863,3]
[358116547,1744744255819,-2989.56,0.0002863,3]
[358116548,1744744255829,-11958.22,0.0002864,3]
[358116549,1744744255839,-47832.88,0.0002865,3]
[358116550,1744744255849,-406.03254942,0.00028659,2]
[358116551,1744744255859,-151.0,0.0002866,2]
[358116552,1744744255870,-828.536201,0.0002866,2]
[358116553,1744744255879,-828.536201,0.0002866,2]
[358116554,1744744255890,-151.0,0.0002866,7]
[358116555,1744744255900,-4023.14086526,0.00028693,8]
[358116556,1744744255909,-160.0,0.000287,3]
[358116557,1744744255919,-2440.27,0.00028767,2]
[358116558,1744744255929,-152.61504102,0.00028822,2]
[358116559,1744744255939,-3703.70444675,0.000289,3]
[358116560,1744744255950,-12500.0,0.00028974,3]
[358116561,1744744255959,-12500.0,0.00028982,3]
[358116562,1744744255969,-12500.0,0.00028991,3]
[358116563,1744744255979,-77165.77981346,0.00029,7]
[358116564,1744744255989,-77165.77981346,0.00029,7]
[358116565,1744744256000,-203.99929311,0.00029,7]
[358116566,1744744256010,-1070.88510756,0.00029,7]
[358116567,1744744256020,-1070.88510756,0.00029,7]
[358116568,1744744256030,-1370.38162805,0.00029,7]
[358116569,1744744256040,-551.4506797,0.00029,2]
[358116570,1744744256049,-300.0,0.00029,2]
[358116571,1744744256058,-11296.1788142,0.00029,3]
[358116572,1744744256068,-151.0,0.00029,2]
[358116573,1744744256078,-151.0,0.00029,2]
[358116574,1744744256087,-12500.0,0.00029,3]
[358116575,1744744256097,-828.536201,0.00029,2]
[358116576,1744744256106,-828.536201,0.00029,2]
[358116577,1744744256116,-828.536201,0.00029,2]
[358116578,1744744256126,-828.536201,0.00029,2]
[358116579,1744744256135,-420.08908737,0.00029,7]
[358116580,1744744256145,-160.0,0.00029,7]
[358116581,1744744256154,-12500.0,0.00029,3]
[358116582,1744744256164,-151.0,0.00029,7]
[358116583,1744744256174,-291.929353,0.00029,7]
[358116584,1744744256189,-160.0,0.00029,7]
[358116585,1744744256210,-2440.27,0.00029041,2]
[358116586,1744744256219,-1333.0,0.00029041,120]
[358116587,1744744256229,-152.61504102,0.00029096,2]
[358116588,1744744256239,-160.0,0.00029097,2]
[358116589,1744744256249,-587.0,0.00029179,2]
[358116590,1744744256259,-2440.27,0.00029315,2]
[358116591,1744744256268,-152.61504102,0.00029342,2]
[358116592,1744744256278,-587.0,0.00029444,2]
[358116593,1744744256289,-4023.14086526,0.00029452,8]
[358116594,1744744256298,-203.99929311,0.0002954,7]
[358116595,1744744256308,-1370.38162805,0.0002954,7]
[358116596,1744744256317,-2440.27,0.00029589,2]
[358116597,1744744256327,-152.61504102,0.00029589,2]
[358116598,1744744256337,-1500.0,0.00029589,4]
[358116599,1744744256346,-152.61504102,0.00029836,2]
[358116600,1744744256355,-2440.27,0.00029863,2]
[358116601,1744744256365,-12500.0,0.00029947,3]
[358116602,1744744256375,-828.536201,0.00029955,2]
[358116603,1744744256384,-828.536201,0.00029955,2]
[358116604,1744744256393,-12500.0,0.00029956,3]
[358116605,1744744256403,-151.0,0.00029964,2]
[358116606,1744744256412,-12500.0,0.00029964,3]
[358116607,1744744256422,-12500.0,0.00029964,3]
[358116608,1744744256432,-4825.0,0.00029973,7]
[358116609,1744744256441,-828.536201,0.00029973,2]
[358116610,1744744256450,-828.536201,0.00029973,2]
[358116611,1744744256460,-12500.0,0.00029973,3]
[358116612,1744744256469,-12500.0,0.00029973,3]
[358116613,1744744256479,-12500.0,0.00029982,3]
[358116614,1744744256489,-12500.0,0.00029982,3]
[358116615,1744744256498,-218.916203,0.00029982,2]
[358116616,1744744256508,-12500.0,0.00029991,3]
[358116617,1744744256676,-12500.0,0.00029991,3]
[358116618,1744744256687,-12500.0,0.00029991,3]
[358116619,1744744256697,-106178.81651183,0.0003,2]
[358116620,1744744256707,-2294.0,0.0003,2]
[358116621,1744744256717,-826.0,0.0003,2]
[358116622,1744744256726,-1699.0,0.0003,2]
[358116623,1744744256736,-1194.09343797,0.0003,2]
[358116624,1744744256745,-5642.84025774,0.0003,60]
[358116625,1744744256755,-1500.0,0.0003,120]
[358116626,1744744256763,-430.13,0.0003,3]
[358116627,1744744256771,-200.0,0.0003,120]
[358116628,1744744256780,-358953.27766034,0.0003,120]
[358116629,1744744256788,-300.0,0.0003,2]
[358116630,1744744256797,-1003.18396191,0.0003,2]
[358116631,1744744256805,-828.536201,0.0003,2]
[358116632,1744744256813,-828.5362,0.0003,2]
[358116633,1744744256822,-160.0,0.0003,120]
[358116634,1744744256831,-522.548908,0.0003,2]
[358116635,1744744256840,-312.5017938,0.0003,120]
[358116636,1744744256850,-242.0,0.0003,2]
[358116637,1744744256859,-2000.0,0.0003,4]
[358116638,1744744256869,-250.0,0.0003,7]
[358116639,1744744256879,-250.0,0.0003,7]
[358116640,1744744256889,-2440.27,0.00030136,2]
[358116641,1744744256898,-1000.0,0.00030137,6]
[358116642,1744744256907,-4023.14086526,0.0003021,9]
[358116643,1744744256917,-1000.0,0.00030274,6]
[358116644,1744744256927,-2440.27,0.0003041,2]
[358116645,1744744256937,-1000.0,0.00030411,6]
[358116646,1744744256946,-500.0,0.00030452,5]
[358116647,1744744256956,-1037.56539663,0.00030452,5]
[358116648,1744744256965,-1000.0,0.00030452,5]
[358116649,1744744256975,-375.60368271,0.00030452,5]
[358116650,1744744256985,-1000.0,0.00030452,5]
[358116651,1744744256994,-500.0,0.00030452,5]
[358116652,1744744257005,-500.04707426,0.00030452,5]
[358116653,1744744257015,-1000.0,0.00030452,5]
[358116654,1744744257024,-1000.0,0.00030452,5]
[358116655,1744744257034,-1000.0,0.00030452,5]
[358116656,1744744257044,-1000.0,0.00030452,5]
[358116657,1744744257053,-1000.0,0.00030452,5]
[358116658,1744744257064,-1000.0,0.00030452,2]
[358116659,1744744257073,-1000.0,0.00030452,5]
[358116660,1744744257083,-1000.0,0.00030452,5]
[358116661,1744744257093,-1000.0,0.00030452,5]
[358116662,1744744257103,-1000.0,0.00030452,5]
[358116663,1744744257113,-1000.0,0.00030452,5]
[358116664,1744744257123,-1000.0,0.00030452,5]
[358116665,1744744257132,-160.0,0.00030467,2]
[358116666,1744744257142,-500.0,0.00030508,7]
[358116667,1744744257151,-1000.0,0.00030548,6]
[358116668,1744744257161,-2440.27,0.00030684,2]
[358116669,1744744257170,-1000.0,0.00030685,6]
[358116670,1744744257179,-158.22420599,0.00030685,2]
[358116671,1744744257189,-2000.0,0.00030685,4]
[358116672,1744744257202,-500.0,0.00030693,5]
[358116673,1744744257213,-1000.0,0.00030822,6]
[358116674,1744744257223,-1695.10277769,0.00030835,2]
[358116675,1744744257233,-2440.5030515,0.00030958,2]
[358116676,1744744257243,-1000.0,0.00030959,6]
[358116677,1744744257254,-4023.14086526,0.00030969,9]
[358116678,1744744257264,-324.87248941,0.00031,2]
[358116679,1744744257275,-160.0,0.00031,120]
[358116680,1744744257284,-162.0,0.00031068,2]
[358116681,1744744257295,-1000.0,0.00031096,6]
[358116682,1744744257304,-600.0,0.000311,2]
[358116683,1744744257314,-172.689325,0.00031143,2]
[358116684,1744744257324,-160.0,0.00031216,3]
[358116685,1744744257334,-1000.0,0.00031233,6]
[358116686,1744744257344,-1000.0,0.0003137,6]
[358116687,1744744257353,-500.0,0.00031424,7]
[358116688,1744744257363,-2000.0,0.000315,4]
[358116689,1744744257372,-250.0,0.000315,7]
[358116690,1744744257382,-250.0,0.000315,7]
[358116691,1744744257392,-1000.0,0.00031507,6]
[358116692,1744744257401,-1000.0,0.00031552,5]
[358116693,1744744257411,-823.0,0.00031615,2]
[358116694,1744744257420,-1000.0,0.00031644,6]
[358116695,1744744257431,-1000.0,0.00031653,5]
[358116696,1744744257442,-4023.14086526,0.00031728,10]
[358116697,1744744257451,-200.0,0.0003177,30]
[358116698,1744744257461,-1000.0,0.00031781,6]
[358116699,1744744257471,-2500.0,0.00031781,4]
[358116700,1744744257480,-472.56,0.000318,31]
[358116701,1744744257490,-472.56,0.000318,31]
[358116702,1744744257500,-472.56,0.000318,31]
[358116703,1744744257510,-472.56,0.000318,31]